fUST/lending_fUST_20250225
["ID","MTS","AMOUNT","RATE_DAILY","PERIOD"]
[354366361,1740450596825,-989.53,0.0011451,120]
[354366362,1740450596851,-629.38,0.0011451,120]
[354366363,1740450596876,-1223.46,0.0011451,120]
[354366364,1740450596902,-538.01,0.00115615,120]
[354366365,1740450596930,-62499.95,0.00115615,7]
[354366366,1740450596955,-2252.57,0.00115615,120]
[354366367,1740450596981,-537.67,0.00117249,120]
[354366368,1740450597009,-800.81,0.00117249,120]
[354366369,1740450597036,-989.53,0.00117249,120]
[354366370,1740450597063,-629.38,0.00117249,120]
[354366371,1740450597091,-1223.46,0.00117249,120]
[354366372,1740450597119,-538.01,0.00118354,120]
[354366373,1740450597149,-62499.95,0.00118354,7]
[354366374,1740450597176,-2252.57,0.00118354,120]
[354366375,1740450597202,-317.58,0.00119,60]
[354366376,1740450597229,-537.67,0.00119989,120]
[354366377,1740450597256,-800.81,0.00119989,120]
[354366378,1740450597285,-989.53,0.00119989,120]
[354366379,1740450597312,-629.38,0.00119989,120]
[354366380,1740450597339,-1223.46,0.00119989,120]
[354366381,1740450597369,-538.03741,0.00121094,120]
[354366382,1740450597399,-62500.15,0.00121094,7]
[354366383,1740450597427,-2252.73047535,0.00121094,120]
[354366384,1740450597455,-537.89223008,0.00122729,120]
[354366385,1740450597482,-800.94679844,0.00122729,120]
[354366386,1740450597509,-989.6750668,0.00122729,120]
[354366387,1740450597536,-629.43102612,0.00122729,120]
[354366388,1740450597565,-1223.56895515,0.00122729,120]
[354366389,1740450597594,-2000.0,0.001245,120]
[354366390,1740450597621,-2000.0,0.001245,120]
[354366391,1740450597648,-500.0,0.00125,120]
[354366392,1740450597717,500.0,0.0013,120]
[354366393,1740450597796,150.51,0.0013,120]
[354366394,1740450597845,500.0,0.0013,120]
[354366395,1740450597888,150.51,0.0013,2]
[354366396,1740450597925,150.51,0.0013,120]
[354366397,1740450597974,500.0,0.0013,120]
[354366398,1740450598012,150.51,0.0013,120]
[354366399,1740450598060,534.22,0.00093687,10]
[354366400,1740450598114,500.0,0.0013,120]
[354366401,1740450600025,500.0,0.0013,120]
[354366493,1740450632724,-404.0,0.0003,120]
[354366495,1740450632734,-42.67480174,0.00036494,35]
[354366501,1740450632780,-12535.57286363,0.00036494,35]
[354366503,1740450632791,-1073.36140284,0.00036494,35]
[354366509,1740450632838,-962.0,0.00036494,35]
[354366512,1740450632850,-374.05366051,0.00036494,35]
[354366514,1740450632863,-2499.999995,0.00036494,35]
[354366519,1740450632900,-1935.51877615,0.00036494,35]
[354366521,1740450632912,-463.04724669,0.00036494,35]
[354366573,1740450638518,-5304.20257881,0.00036494,35]
[354366574,1740450638574,-662.00002094,0.00036494,35]
[354366575,1740450638631,-1725.64823229,0.00036494,35]
[354366583,1740450640935,-1008.2804493,0.00036494,35]
[354366585,1740450640947,-1400.71100295,0.00036494,35]
[354366587,1740450640990,-500.0,0.00036494,35]
[354366588,1740450641004,-94157.19262835,0.00036494,35]
[354366589,1740450641013,-149.48167822,0.00036494,7]
[354366590,1740450641023,-1191.99890178,0.00036494,2]
[354366591,1740450641033,-228.57641041,0.0005808,120]
[354366592,1740450641043,-500.0,0.0005808,120]
[354366593,1740450641052,-1000.0,0.00059715,2]
[354366594,1740450641061,-500.0,0.0006082,120]
[354366595,1740450641072,-1000.0,0.00062455,2]
[354366596,1740450641081,-500.0,0.0006356,120]
[354366597,1740450641092,-1000.0,0.00065195,2]
[354366598,1740450641102,-500.0,0.000663,120]
[354366599,1740450641111,-833.1355537,0.00067934,2]
[354366600,1740450641121,-500.0,0.00069039,120]
[354366601,1740450641130,-500.0,0.00071779,120]
[354366602,1740450641139,-500.0,0.00074519,120]
[354366603,1740450641149,-500.0,0.00077258,120]
[354366604,1740450641159,-500.0,0.00079998,120]
[354366605,1740450641168,-1000.0,0.0008,120]
[354366606,1740450641178,-500.0,0.00082738,120]
[354366607,1740450641188,-500.0,0.00085478,120]
[354366608,1740450641197,-500.0,0.00088217,120]
[354366609,1740450641206,-150.13,0.000899,60]
[354366610,1740450641216,-500.0,0.00090957,120]
[354366611,1740450641225,-500.0,0.00093697,120]
[354366612,1740450641235,-1000.0,0.00094,120]
[354366613,1740450641245,-500.0,0.00096436,120]
[354366614,1740450641255,-500.0,0.00099176,120]
[354366615,1740450641264,-500.0,0.00101916,120]
[354366616,1740450641273,-150.13,0.00102,60]
[354366617,1740450641282,-10000.0,0.001034,120]
[354366618,1740450641291,-500.0,0.00104656,120]
[354366619,1740450641300,-500.0,0.00107395,120]
[354366620,1740450641309,-1000.0,0.0011,120]
[354366621,1740450641318,-500.0,0.00110135,120]
[354366622,1740450641327,-500.0,0.00112875,120]
[354366623,1740450641337,-10000.0,0.001134,120]
[354366624,1740450641349,-573.033787,0.00115615,120]
[354366625,1740450641359,-150.13,0.00123,60]
[354366626,1740450641368,-10000.0,0.001234,120]
[354366627,1740450641379,-151.20571936,0.0012974,120]
[354366628,1740450641388,-445.18,0.0012999,10]
[354366629,1740450641399,-150.51,0.0013,64]
[354366630,1740450641409,-150.51,0.0013,120]
[354366631,1740450641419,-150.51,0.0013,120]
[354366632,1740450641428,-150.51,0.0013,120]
[354366633,1740450641438,-5005.31036733,0.0013,120]
[354366634,1740450641447,-150.51,0.0013,120]
[354366635,1740450641456,-500.0,0.0013,120]
[354366636,1740450641465,-500.0,0.0013,120]
[354366637,1740450641478,-500.0,0.0013,120]
[354366638,1740450641487,-500.0,0.0013,120]
[354366639,1740450641496,-500.0,0.0013,120]
[354366640,1740450641506,-150.51,0.0013,2]
[354366641,1740450641515,-500.0,0.0013,120]
[354366642,1740450641524,-150.51,0.0013,2]
[354366643,1740450641534,-500.0,0.0013,120]
[354366644,1740450641543,-500.0,0.0013,120]
[354366645,1740450641553,-150.51,0.0013,120]
[354366646,1740450641563,-500.0,0.00130274,120]
[354366647,1740450641572,-500.0,0.00130274,120]
[354366648,1740450641582,-150.51,0.00130274,64]
[354366649,1740450641591,-150.51,0.00130274,120]
[354366650,1740450641601,-150.51,0.00130274,120]
[354366651,1740450641610,-150.51,0.00130274,120]
[354366652,1740450641620,-150.51,0.00130274,120]
[354366653,1740450641630,-500.0,0.00130274,120]
[354366654,1740450641639,-500.0,0.00130274,120]
[354366655,1740450641649,-500.0,0.00130274,120]
[354366656,1740450641658,-500.0,0.00130274,120]
[354366657,1740450641668,-500.0,0.00130274,120]
[354366658,1740450641677,-650.30702018,0.00130274,120]
[354366659,1740450641689,-500.0,0.00130274,120]
[354366660,1740450641699,-500.0,0.00130274,120]
[354366661,1740450641708,-217.67955018,0.00130274,120]
[354366662,1740450641718,-500.0,0.00130548,120]
[354366663,1740450641728,-500.0,0.00130548,120]
[354366664,1740450641740,-150.51,0.00130548,64]
[354366665,1740450641751,-150.51,0.00130548,120]
[354366666,1740450641872,-151.5863746,0.00130548,120]
[354366667,1740450641882,-219.93863708,0.00130548,120]
[354366668,1740450641892,-150.51,0.00130548,120]
[354366669,1740450641902,-752.15004214,0.00130548,120]
[354366670,1740450641911,-500.0,0.00130548,120]
[354366671,1740450641921,-500.0,0.00130548,120]
[354366672,1740450641931,-500.0,0.00130548,120]
[354366673,1740450641941,-500.0,0.00130548,120]
[354366674,1740450641951,-500.0,0.00130548,120]
[354366675,1740450641960,-500.0,0.00130548,120]
[354366676,1740450641969,-993.63696107,0.00130822,120]
[354366677,1740450641979,-500.0,0.00130822,120]
[354366678,1740450641992,-150.51,0.00130822,64]
[354366679,1740450642002,-150.51,0.00130822,120]
[354366680,1740450642011,-178.09297794,0.00130822,120]
[354366681,1740450642021,-500.0,0.00130822,120]
[354366682,1740450642031,-500.0,0.00130822,120]
[354366683,1740450642040,-500.0,0.00130822,120]
[354366684,1740450642049,-500.0,0.00130822,120]
[354366685,1740450642059,-500.0,0.00130822,120]
[354366686,1740450642068,-500.0,0.00130822,120]
[354366687,1740450642078,-500.0,0.00131096,120]
[354366688,1740450642087,-237.16257981,0.00131096,64]
[354366689,1740450642098,-247.84454853,0.00131096,120]
[354366690,1740450642107,-500.0,0.00131096,120]
[354366691,1740450642117,-997.33158435,0.00131096,120]
[354366692,1740450642126,-500.0,0.00131096,120]
[354366693,1740450642135,-500.0,0.00131096,120]
[354366694,1740450642145,-500.0,0.00131096,120]
[354366695,1740450642154,-500.0,0.00131096,120]
[354366696,1740450642164,-500.0,0.0013137,120]
[354366697,1740450642175,-500.0,0.0013137,120]
[354366698,1740450642186,-500.0,0.0013137,120]
[354366699,1740450642197,-500.0,0.0013137,120]
[354366700,1740450642206,-500.0,0.0013137,120]
[354366701,1740450642216,-500.0,0.0013137,120]
[354366702,1740450642225,-500.68476957,0.00131644,120]
[354366703,1740450642234,-500.0,0.00131644,120]
[354366704,1740450642244,-500.0,0.00131644,120]
[354366705,1740450642254,-500.0,0.00131644,120]
[354366706,1740450642263,-500.0,0.00131644,120]
[354366707,1740450642273,-500.0,0.00131644,120]
[354366708,1740450642282,-500.92482089,0.00131918,120]
[354366709,1740450642291,-801.48366516,0.00131918,120]
[354366710,1740450642301,-501.72560662,0.00131918,120]
[354366711,1740450642310,-500.0,0.00131918,120]
[354366712,1740450642319,-500.0,0.00131918,120]
[354366713,1740450642329,-500.0,0.00132192,120]
[354366714,1740450642338,-743.37804932,0.00132192,120]
[354366715,1740450642349,-500.0,0.00132466,120]
[354366716,1740450642358,-799.52531234,0.0013274,120]
[354366717,1740450642367,-2000.0,0.001345,120]
[354366718,1740450642378,-2000.0,0.001445,120]
[354366719,1740450642387,-2000.0,0.001445,120]
[354366720,1740450642397,-2000.0,0.001445,120]
[354366721,1740450642406,-2000.0,0.001445,120]
[354366722,1740450642415,-2000.0,0.00145,120]
[354366723,1740450642425,-2000.0,0.00145,120]
[354366724,1740450642434,-2000.0,0.001545,120]
[354366725,1740450642444,-2000.0,0.001645,120]
[354366726,1740450642453,-2000.0,0.001745,120]
[354366727,1740450642463,-2000.0,0.001845,120]
[354366728,1740450642472,-2000.0,0.001945,120]
[354366729,1740450642482,-10000.0,0.002,120]
[354366730,1740450642491,-2000.0,0.002045,120]
[354366731,1740450642501,-2000.0,0.002145,120]
[354366732,1740450642510,-150.13,0.00215,60]
[354366733,1740450642520,-2000.0,0.002245,120]
[354366734,1740450642530,-500.0,0.0023,120]
[354366735,1740450642539,-2000.0,0.002345,120]
[354366736,1740450642548,-2000.0,0.002445,120]
[354366737,1740450642558,-2000.0,0.00245,120]
[354366738,1740450642567,-2000.0,0.00245,120]
[354366739,1740450642576,-2000.0,0.00245,120]
[354366740,1740450642586,-2000.0,0.00245,120]
[354366741,1740450642597,-2000.0,0.00345,120]
[354366742,1740450642606,-2000.0,0.00345,120]
[354366743,1740450642615,-2000.0,0.00345,120]
[354366744,1740450642625,-500.0,0.0035,120]
[354366745,1740450642635,-10000.0,0.004,120]
[354366746,1740450642644,-2000.0,0.00445,120]
[354366747,1740450642654,-2000.0,0.00445,120]
[354366748,1740450642663,-2000.0,0.00445,120]
[354366749,1740450642673,-500.0,0.005,120]
[354366750,1740450642682,-2000.0,0.00545,120]
[354366751,1740450642692,-500.0,0.006,120]
[354366752,1740450642701,-2000.0,0.00645,120]
[354366753,1740450642711,-2977.31861109,0.00646048,30]
[354366754,1740450642721,-2000.0,0.00745,120]
[354366755,1740450642730,-2000.0,0.00745,120]
[354366756,1740450642740,-2000.0,0.00745,120]
[354366757,1740450642749,-2000.0,0.007499,120]
[354366758,1740450642758,-1500.0,0.00799,120]
[354366759,1740450642768,-1834.54867617,0.00799,120]
[354366760,1740450642778,-500.0,0.008,120]
[354366761,1740450642787,-150.13,0.008,60]
[354366762,1740450642808,-2000.0,0.00845,120]
[354366763,1740450642819,-2000.0,0.00845,120]
[354366764,1740450642830,-2000.0,0.00849,120]
[354366765,1740450642840,-5000.0,0.0089,120]
[354366766,1740450642851,-2000.0,0.00945,120]
[354366767,1740450642867,-2000.0,0.00945,120]
[354366768,1740450642878,-10000.0,0.00945,120]
[354366769,1740450642888,-212.71851744,0.00972999,120]
[354366770,1740450642900,-2128315.58719091,0.00973,120]
[354366849,1740450650862,-150.51,0.0013,120]
[354366850,1740450650872,-150.51,0.0013,2]
[354366851,1740450650882,-150.51,0.0013,120]
[354366852,1740450650892,-150.51,0.00130274,120]
[354366853,1740450650901,-150.51,0.00130548,120]
[354366854,1740450650911,-150.51,0.00130822,120]
[354366855,1740450650920,-186.7409577,0.00131096,120]
[354366856,1740450650930,-701.74904255,0.006,120]
[354366857,1740450650945,-150.51,0.00130274,120]
[354366858,1740450650954,-298.25095745,0.006,120]
[354366859,1740450651001,-500.0,0.0005808,120]
[354366860,1740450651011,-500.0,0.0006082,120]
[354366861,1740450651020,-578.42,0.0006356,120]
[354366862,1740450651029,-150.51,0.0013,2]
[354366863,1740450651040,-198.98,0.00130548,120]
[354366864,1740450770724,500.0,0.00013785,2]
[354366865,1740450927087,268.366625,9.041e-05,2]
[354366867,1740450982106,527.0,0.00019,120]
[354366868,1740451069687,500.0,0.00013785,2]
[354366875,1740451635123,-305.182857,0.000161,6]
[354366876,1740451635146,-4858.2005992,0.000188,2]
[354366877,1740451635168,-300.0,0.00018899,2]
[354366878,1740451635187,-5425.90324679,0.000189,2]
[354366879,1740451635208,-420.0,0.00020602,2]
[354366880,1740451635229,-280.0,0.00022459,2]
[354366881,1740451635250,-2289.5117374,0.000239,2]
[354366883,1740451645114,-770.41727846,0.00018895,2]
[354366884,1740451652083,-739.06016294,0.00018895,2]
[354366890,1740451804235,-3136.39150939,0.000239,2]
[354366891,1740451804266,-18854.11683572,0.000239,2]
[354366892,1740451804295,-200.0,0.0003,30]
[354366893,1740451804325,-329.80498334,0.0003999,4]
[354366894,1740451804353,-90000.0,0.0004,30]
[354366895,1740451804383,-2328.2799163,0.00045802,2]
[354366896,1740451804414,-8333.33974648,0.000459,10]
[354366897,1740451804442,-9800.00272853,0.0005,120]
[354366898,1740451804469,-1111.82,0.0005807,10]
[354366899,1740451804497,-808.17,0.0005807,10]
[354366900,1740451804524,-329.80498334,0.0005807,5]
[354366901,1740451804552,-156.55,0.0005807,30]
[354366902,1740451804582,-500.0,0.00058079,120]
[354366903,1740451804609,-502.23915834,0.0005808,120]
[354366904,1740451804636,-500.0,0.0005808,120]
[354366905,1740451804664,-500.0,0.0005808,120]
[354366906,1740451804694,-500.0,0.0005808,120]
[354366907,1740451804721,-500.0,0.0005808,120]
[354366908,1740451804748,-500.0,0.0005808,120]
[354366909,1740451804774,-514.24789724,0.0005808,120]
[354366910,1740451804801,-248.02358839,0.0005808,120]
[354366911,1740451804830,-308.15430168,0.0005808,120]
[354366912,1740451804858,-504.62786793,0.0005808,120]
[354366913,1740451804886,-505.00097221,0.0005808,120]
[354366914,1740451804917,-504.92561885,0.0005808,120]
[354366915,1740451804945,-503.39978365,0.0005808,120]
[354366916,1740451804973,-502.25140531,0.0005808,7]
[354366917,1740451804999,-506.02095595,0.0005808,120]
[354366918,1740451805034,-502.68889308,0.0005808,120]
[354366919,1740451805064,-504.00886393,0.0005808,120]
[354366920,1740451805092,-513.61704371,0.0005808,120]
[354366921,1740451805121,-502.73910335,0.0005808,120]
[354366922,1740451805151,-501.16227041,0.0005808,120]
[354366923,1740451805179,-503.95136383,0.0005808,120]
[354366924,1740451805209,-609.3614003,0.0005808,120]
[354366925,1740451805349,-503.73613085,0.0005808,120]
[354366926,1740451805378,-482.80993583,0.0005808,120]
[354366927,1740451805407,-565.20219886,0.0005808,120]
[354366928,1740451805432,-501.95753417,0.0005808,120]
[354366929,1740451805460,-503.78083376,0.0005808,120]
[354366930,1740451805486,-507.10976201,0.0005808,120]
[354366931,1740451805515,-506.92050678,0.0005808,120]
[354366932,1740451805544,-315.16285147,0.0005808,120]
[354366933,1740451805571,-500.0,0.0005808,120]
[354366934,1740451805599,-500.0,0.0005808,120]
[354366935,1740451805626,-500.0,0.0005808,120]
[354366936,1740451805652,-508.07030468,0.0005808,120]
[354366937,1740451805678,-500.0,0.0005808,120]
[354366938,1740451805704,-500.0,0.0005808,120]
[354366939,1740451805729,-501.39656921,0.0005808,120]
[354366940,1740451805754,-501.37609096,0.0005808,120]
[354366941,1740451805781,-500.0,0.0005808,120]
[354366942,1740451805807,-509.42659085,0.0005808,120]
[354366943,1740451805833,-441.41942299,0.0005808,120]
[354366944,1740451805859,-506.67733231,0.0005808,120]
[354366945,1740451805889,-500.0,0.0005808,120]
[354366946,1740451805922,-503.21592969,0.0005808,120]
[354366947,1740451805953,-502.34937989,0.0005808,7]
[354366948,1740451805984,-500.0,0.0005808,120]
[354366949,1740451806015,-585.64155989,0.0005808,7]
[354366950,1740451806044,-504.69991416,0.0005808,120]
[354366951,1740451806072,-506.12113751,0.0005808,120]
[354366952,1740451806100,-507.12852593,0.0005808,120]
[354366953,1740451806129,-506.58200855,0.0005808,120]
[354366954,1740451806158,-503.26140811,0.0005808,120]
[354366955,1740451806188,-510.26944198,0.0005808,120]
[354366956,1740451806226,-544.38582461,0.0005808,120]
[354366957,1740451806252,-250.66471821,0.0005808,120]
[354366958,1740451806279,-503.77793706,0.0005808,120]
[354366959,1740451806307,-500.0,0.0005808,120]
[354366960,1740451806335,-505.84881186,0.0005808,120]
[354366961,1740451806365,-503.41072969,0.0005808,120]
[354366962,1740451806392,-565.51286189,0.0005808,120]
[354366963,1740451806420,-504.14956059,0.0005808,120]
[354366964,1740451806447,-510.37103184,0.0005808,120]
[354366965,1740451806474,-480.0,0.0005808,120]
[354366966,1740451806500,-500.0,0.0005808,120]
[354366967,1740451806526,-500.0,0.0005808,120]
[354366968,1740451806552,-511.86223612,0.0005808,120]
[354366969,1740451806577,-507.13434794,0.0005808,120]
[354366970,1740451806602,-505.77482509,0.0005808,120]
[354366971,1740451806628,-511.70764323,0.0005808,120]
[354366972,1740451806653,-500.0,0.0005808,120]
[354366973,1740451806678,-500.0,0.0005808,120]
[354366974,1740451806705,-505.68291952,0.0005808,120]
[354366975,1740451806731,-506.26080405,0.0005808,120]
[354366976,1740451806758,-507.22019465,0.0005808,120]
[354366977,1740451806784,-500.0,0.0005808,120]
[354366978,1740451806809,-500.0,0.0005808,120]
[354366979,1740451806834,-509.76721271,0.0005808,120]
[354366980,1740451806860,-508.86239642,0.0005808,120]
[354366981,1740451806887,-505.93179733,0.0005808,120]
[354366982,1740451806911,-502.66136544,0.0005808,120]
[354366983,1740451806940,-505.30935893,0.0005808,120]
[354366984,1740451806969,-510.67480911,0.00059715,120]
[354366985,1740451806996,-710.04,0.0006081,10]
[354366986,1740451807023,-500.0,0.0006082,120]
[354366987,1740451807050,-500.0,0.0006082,120]
[354366988,1740451807076,-500.0,0.0006082,120]
[354366989,1740451807103,-509.32346864,0.0006082,120]
[354366990,1740451807128,-642.23732123,0.0006082,120]
[354366991,1740451807155,-511.59455936,0.0006082,120]
[354366992,1740451807180,-500.0,0.0006082,120]
[354366993,1740451807207,-500.0,0.0006082,120]
[354366994,1740451807234,-500.0,0.0006082,120]
[354366995,1740451807259,-500.0,0.0006356,120]
[354366996,1740451807285,-500.0,0.0006356,120]
[354366997,1740451807311,-364.56006465,0.0006356,120]
[354366998,1740451807338,-500.0,0.0006356,120]
[354366999,1740451807369,-507.5916561,0.0006356,120]
[354367000,1740451807400,-500.0,0.00066299,120]
[354367001,1740451807427,-500.0,0.000663,120]
[354367002,1740451807456,-542.48,0.000663,120]
[354367003,1740451807483,-343.68447125,0.000663,120]
[354367004,1740451807510,-500.0,0.00069039,120]
[354367005,1740451807538,-329.80498334,0.0006999,6]
[354367006,1740451807564,-30724.44629784,0.0007,60]
[354367007,1740451807590,-500.17740338,0.00071779,120]
[354367008,1740451807616,-1000.0,0.0008,120]
[354367009,1740451807745,-1000.0,0.00086,120]
[354367010,1740451807772,-500.0,0.00086922,2]
[354367011,1740451807799,-162.00002094,0.0008747,2]
[354367012,1740451807828,-500.0,0.00093696,120]
[354367013,1740451807855,-1000.0,0.00095,120]
[354367014,1740451813407,518.65379905,0.00069688,15]
[354367015,1740451825158,500.0,0.00069999,120]
[354367016,1740451825449,500.0,0.00072739,120]
[354367017,1740451825684,500.0,0.00075479,120]
[354367018,1740451825935,507.22648566,0.00078218,120]
[354367082,1740451831976,-2052.7750643,0.0012,120]
[354367083,1740451831989,-347.0249357,0.0012,120]
[354367084,1740451831998,-329.80498334,0.0012449,22]
[354367085,1740451832007,-5.17353652,0.001245,120]
[354367086,1740451832082,-9994.82646348,0.001245,120]
[354367087,1740451832092,-450.0,0.00125,120]
[354367088,1740451832101,-150.59,0.0013,120]
[354367089,1740451832110,-150.59,0.0013,2]
[354367090,1740451832119,-150.59,0.0013,120]
[354367091,1740451832129,-150.59,0.00130274,120]
[354367092,1740451832138,-150.59,0.00130274,120]
[354367093,1740451832147,-198.74,0.00130548,120]
[354367094,1740451832156,-200.42672053,0.00130548,120]
[354367095,1740451832165,-500.0,0.00133164,120]
[354367096,1740451832174,-500.0,0.00133712,120]
[354367097,1740451832184,-2697.22244312,0.00135,120]
[354367098,1740451832200,-2302.77755688,0.00135,120]
[354367099,1740451832209,-584.48917799,0.0014,76]
[354367109,1740451837739,-534.51082201,0.0014,76]
[354367111,1740451837750,-10000.0,0.001545,120]
[354367113,1740451837760,-1000.0,0.00174499,120]
[354367115,1740451837770,-7519.58374984,0.001745,120]
[354367117,1740451837782,-2480.41625016,0.001745,120]
[354367118,1740451837792,-376.14,0.00174773,120]
[354367119,1740451837801,-4290.81024235,0.00175,120]
[354367121,1740451837813,-709.18975765,0.00175,120]
[354367123,1740451837823,-5000.0,0.00185,120]
[354367124,1740451837833,-329.80498334,0.0020339,60]
[354367125,1740451837843,-10000.0,0.002034,120]
[354367127,1740451837853,-1985.0713,0.0021,108]
[354367129,1740451837862,-2100.39165859,0.0022,120]
[354367131,1740451837872,-10000.0,0.00225,120]
[354367133,1740451837882,-10000.0,0.002334,120]
[354367135,1740451837892,-5000.0,0.00244,120]
[354367136,1740451837902,-5000.0,0.00244,120]
[354367138,1740451837912,-153.9438,0.00273973,120]
[354367140,1740451837923,-152.089165,0.00273973,120]
[354367142,1740451837932,-202.774558,0.00273973,120]
[354367144,1740451837942,-202.774558,0.00273973,120]
[354367145,1740451837953,-202.774558,0.00273973,120]
[354367147,1740451837962,-202.774558,0.00273973,120]
[354367148,1740451837972,-202.774558,0.00273973,120]
[354367149,1740451837981,-202.774558,0.00273973,120]
[354367150,1740451837990,-202.774558,0.00273973,120]
[354367151,1740451837999,-202.774558,0.00273973,120]
[354367152,1740451838009,-202.774558,0.00273973,120]
[354367153,1740451838018,-202.774558,0.00273973,120]
[354367154,1740451838027,-202.774558,0.00273973,120]
[354367155,1740451838036,-202.774558,0.00273973,120]
[354367156,1740451838046,-202.774558,0.00273973,120]
[354367157,1740451838055,-202.774558,0.00273973,120]
[354367158,1740451838064,-202.774558,0.00273973,120]
[354367159,1740451838074,-202.774558,0.00273973,120]
[354367160,1740451838083,-202.774558,0.00273973,120]
[354367161,1740451838093,-202.774558,0.00273973,120]
[354367162,1740451838103,-329.80498334,0.00285683,60]
[354367163,1740451838112,-8333.33974635,0.00285693,85]
[354367164,1740451838122,-1425.0,0.00323,86]
[354367165,1740451838131,-10000.0,0.00325,120]
[354367166,1740451838141,-1000.0,0.0033,120]
[354367167,1740451838150,-5000.0,0.00344,120]
[354367168,1740451838159,-5000.0,0.00344,120]
[354367169,1740451838169,-2028.18497173,0.00344,120]
[354367170,1740451838181,-2971.81502827,0.00344,120]
[354367171,1740451838191,-2000.0,0.0036,120]
[354367172,1740451838213,-2352.0,0.0038,120]
[354367173,1740451838225,-10000.0,0.0041,120]
[354367174,1740451838234,-450.0,0.0041,120]
[354367175,1740451838244,-150.0,0.0041,120]
[354367176,1740451838254,-673.48,0.0042499,120]
[354367177,1740451838264,-329.80498334,0.0042499,120]
[354367178,1740451838273,-10000.0,0.00425,120]
[354367179,1740451838283,-1000.0,0.0043,120]
[354367180,1740451838293,-561.23,0.0044399,120]
[354367181,1740451838302,-10704.16359059,0.00444,120]
[354367182,1740451838312,-5000.0,0.00444,120]
[354367183,1740451838321,-5000.0,0.00444,120]
[354367184,1740451838330,-5000.0,0.00445,120]
[354367185,1740451838339,-965.82309,0.00487,90]
[354367186,1740451838350,-2112.24,0.005,120]
[354367187,1740451838360,-1948.94865462,0.005,120]
[354367188,1740451838373,-1044.141,0.00501345,65]
[354367189,1740451838383,-4858.20059917,0.00514075,120]
[354367190,1740451838392,-329.80498334,0.0051499,120]
[354367191,1740451838403,-5000.0,0.00515,120]
[354367192,1740451838414,-8333.33974635,0.00525486,120]
[354367193,1740451838424,-4999.95,0.00544,120]
[354367194,1740451838434,-2000.0,0.0055,120]
[354367195,1740451838445,-1316.91489,0.0056971,64]
[354367196,1740451838456,-3240.43112632,0.0058,120]
[354367197,1740451838470,-380.26151072,0.0058,120]
[354367198,1740451838482,-1379.30736296,0.0058,120]
[354367199,1740451838492,-150.00173925,0.0059,120]
[354367200,1740451838501,-3470.69089719,0.00615,120]
[354367201,1740451838513,-85.26267581,0.00615,120]
[354367202,1740451838523,-1719.0,0.00674731,118]
[354367203,1740451838533,-5000.0,0.00715,120]
[354367204,1740451838543,-3555.953573,0.00715,120]
[354367205,1740451838552,-1500.0,0.00749,120]
[354367206,1740451838561,-500.0,0.0075,120]
[354367207,1740451838571,-6000.0,0.0075,120]
[354367208,1740451838581,-8333.33974635,0.00765279,120]
[354367209,1740451838590,-1000.0,0.0077,120]
[354367210,1740451838727,-329.80498334,0.0078999,120]